[Event "DSB-Frauenkader-Challenge 2021"]
[Site "Magdeburg"]
[Date "2021.04.05"]
[Round "1.1"]
[White "Bashylina, Luisa"]
[Black "Sieber, Fiona"]
[Result "0-1"]
[ECO "C45"]
[WhiteElo "1978"]
[BlackElo "2275"]
[Annotator "ChessBase"]
[PlyCount "118"]
[EventDate "2021.03.30"]
[EventType "tourn"]
[EventCountry "GER"]
[SourceTitle "playchess.com"]
[Source "ChessBase"]
[SourceQuality "1"]
[TimeControl "40/5400+30:1800+30"]

1. e4 {[%emt 0:00:00]} e5 {[%emt 0:00:00]} 2. Nf3 {[%emt 0:00:00]} Nc6 {[%emt 0:00:00]} 3. d4 {[%emt 0:00:00]} exd4 {[%emt 0:00:00]} 4. Nxd4 {[%emt 0:00:00]} Bc5 {[%emt 0:00:00]} 5. Be3 {[%emt 0:00:00]} Qf6 {[%emt 0:00:05]} 6. c3 {[%emt 0:00:03]} Nge7 {[%emt 0:00:13]} 7. Bc4 {[%emt 0:00:07]} O-O {[%emt 0:00:11]} 8. O-O {[%emt 0:00:05]} Qg6 {[%emt 0:00:10]} 9. f3 {[%emt 0:08:16]} Bxd4 {[%emt 0:07:10]} 10. cxd4 {[%emt 0:01:32]} d5 {[%emt 0:00:20]} 11. Bd3 {[%emt 0:07:33]} Nb4 {[%emt 0:01:45]} 12. Nc3 {[%emt 0:01:54]} Bh3 {[%emt 0:10:07]} 13. Rf2 {[%emt 0:04:28]} Nxd3 {[%emt 0:00:05]} 14. Qxd3 {[%emt 0:00:07]} Rad8 {[%emt 0:00:58]} 15. Rd1 {[%emt 0:10:55]} Rfe8 {[%emt 0:04:29]} 16. Kh1 {[%emt 0:17:26]} Bc8 {[%emt 0:01:49]} 17. Nb5 {[%emt 0:06:18]} c6 {[%emt 0:10:21]} 18. Nc3 {[%emt 0:06:49]} Be6 {[%emt 0:12:36]} 19. b3 {[%emt 0:02:21]} Nc8 {[%emt 0:01:03]} 20. e5 {[%emt 0:07:13]} Qxd3 {[%emt 0:06:59]} 21. Rxd3 {[%emt 0:00:01]} f6 {[%emt 0:00:51]} 22. f4 {[%emt 0:01:32]} Bf5 {[%emt 0:07:29]} 23. Rd1 {[%emt 0:00:39]} Kf7 {[%emt 0:06:13]} 24. h3 {[%emt 0:02:55]} h5 {[%emt 0:00:07]} 25. Na4 {[%emt 0:00:56]} Nd6 {[%emt 0:07:28]} 26. Nc3 {[%emt 0:03:31]} Bc8 {[%emt 0:00:54]} 27. Re2 {[%emt 0:02:08]} Nf5 {[%emt 0:00:46]} 28. Bf2 {[%emt 0:00:22]} h4 {[%emt 0:05:24]} 29. Kh2 {[%emt 0:00:43]} b6 {[%emt 0:01:20]} 30. Rde1 {[%emt 0:03:09]} Ba6 {[%emt 0:01:33]} 31. Rd2 {[%emt 0:00:31]} Re6 {[%emt 0:00:09]} 32. Rdd1 {[%emt 0:02:38]} Bb7 {[%emt 0:00:28]} 33. b4 {[%emt 0:01:15]} Ba6 {[%emt 0:00:34]} 34. a3 {[%emt 0:00:29]} Bc4 {[%emt 0:00:18]} 35. exf6 {[%emt 0:01:15]} gxf6 {[%emt 0:03:26]} 36. Rxe6 {[%emt 0:00:47]} Kxe6 {[%emt 0:00:02]} 37. Re1+ {[%emt 0:00:11]} Kf7 {[%emt 0:01:02]} 38. Nb1 {[%emt 0:01:14]} Bd3 {[%emt 0:01:30]} 39. Nd2 {[%emt 0:00:18]} Rg8 {[%emt 0:04:52]} 40. Kg1 {[%emt 0:06:22]} Rh8 {[%emt 0:05:57]} 41. Kh2 {[%emt 0:33:48]} Nd6 {[%emt 0:08:36]} 42. Nf3 {[%emt 0:00:00]} Nc4 {[%emt 0:03:25]} 43. Nxh4 {[%emt 0:00:00]} Be4 {[%emt 0:03:30]} 44. a4 {[%emt 0:00:00]} Nb2 {[%emt 0:00:45]} 45. g3 {[%emt 0:00:00]} Nd3 {[%emt 0:00:29]} 46. Re2 {[%emt 0:00:00]} Nxb4 {[%emt 0:00:15]} 47. f5 {[%emt 0:00:00]} a5 {[%emt 0:05:00]} 48. Ng6 {[%emt 0:00:00]} Rc8 {[%emt 0:00:53]} 49. g4 {[%emt 0:00:00]} b5 {[%emt 0:00:08]} 50. Be1 {[%emt 0:02:30]} bxa4 {[%emt 0:00:17]} 51. Bc3 {[%emt 0:01:18]} a3 {[%emt 0:01:47]} 52. h4 {[%emt 0:01:05]} Nc2 {[%emt 0:02:46]} 53. h5 {[%emt 0:00:07]} Kg7 {[%emt 0:00:19]} 54. g5 {[%emt 0:00:58]} fxg5 {[%emt 0:00:28]} 55. Rf2 {[%emt 0:00:36]} Kf6 {[%emt 0:04:53]} 56. h6 {[%emt 0:00:11]} Ne3 {[%emt 0:00:24]} 57. Ne5 {[%emt 0:01:18]} Rh8 {[%emt 0:01:24]} 58. Ra2 {[%emt 0:00:30]} Rxh6+ {[%emt 0:00:11]} 59. Kg3 {[%emt 0:00:34]} Nxf5+ {[%emt 0:00:14]} 0-1

[Event "DSB-Frauenkader-Challenge 2021"]
[Site "Magdeburg"]
[Date "2021.04.05"]
[Round "1.2"]
[White "Schneider, Jana"]
[Black "Lubbe, Melanie"]
[Result "1-0"]
[ECO "B33"]
[WhiteElo "2272"]
[BlackElo "2274"]
[Annotator "ChessBase"]
[PlyCount "105"]
[EventDate "2021.03.30"]
[EventType "tourn"]
[EventCountry "GER"]
[SourceTitle "playchess.com"]
[Source "ChessBase"]
[SourceQuality "1"]
[TimeControl "40/5400+30:1800+30"]

1. e4 {[%emt 0:00:00]} c5 {[%emt 0:00:00]} 2. Nf3 {[%emt 0:00:00]} Nc6 {[%emt 0:00:00]} 3. d4 {[%emt 0:00:00]} cxd4 {[%emt 0:00:00]} 4. Nxd4 {[%emt 0:00:00]} Nf6 {[%emt 0:00:03]} 5. Nc3 {[%emt 0:00:05]} e5 {[%emt 0:00:27]} 6. Ndb5 {[%emt 0:00:16]} d6 {[%emt 0:00:16]} 7. Bg5 {[%emt 0:00:12]} a6 {[%emt 0:00:22]} 8. Na3 {[%emt 0:00:13]} b5 {[%emt 0:00:17]} 9. Nd5 {[%emt 0:00:09]} Be7 {[%emt 0:00:53]} 10. Bxf6 {[%emt 0:00:11]} Bxf6 {[%emt 0:00:07]} 11. c4 {[%emt 0:00:18]} b4 {[%emt 0:00:55]} 12. Nc2 {[%emt 0:00:10]} O-O {[%emt 0:00:50]} 13. Qf3 {[%emt 0:15:04]} Bg5 {[%emt 0:06:37]} 14. h4 {[%emt 0:01:07]} Bh6 {[%emt 0:02:21]} 15. g3 {[%emt 0:10:43]} f5 {[%emt 0:09:23]} 16. Bh3 {[%emt 0:02:05]} g6 {[%emt 0:12:49]} 17. Ndxb4 {[%emt 0:26:45]} Nxb4 {[%emt 0:33:58]} 18. Nxb4 {[%emt 0:00:09]} fxe4 {[%emt 0:10:16]} 19. Qxe4 {[%emt 0:01:21]} Qb6 {[%emt 0:03:19]} 20. Nd3 {[%emt 0:01:54]} Bb7 {[%emt 0:03:37]} 21. Be6+ {[%emt 0:00:35]} Kh8 {[%emt 0:00:06]} 22. Bd5 {[%emt 0:00:15]} Bxd5 {[%emt 0:01:27]} 23. cxd5 {[%emt 0:08:42]} Qa5+ {[%emt 0:03:29]} 24. Kf1 {[%emt 0:08:00]} Rf6 {[%emt 0:02:36]} 25. h5 {[%emt 0:06:35]} Raf8 {[%emt 0:02:22]} 26. hxg6 {[%emt 0:00:54]} Rxg6 {[%emt 0:00:37]} 27. Kg2 {[%emt 0:01:13]} Qd2 {[%emt 0:00:45]} 28. Rae1 {[%emt 0:04:15]} Rgf6 {[%emt 0:01:39]} 29. Re2 {[%emt 0:01:19]} Qg5 {[%emt 0:00:04]} 30. Rc2 {[%emt 0:00:59]} Qg7 {[%emt 0:01:06]} 31. Rh5 {[%emt 0:02:06]} Qf7 {[%emt 0:03:01]} 32. Qh4 {[%emt 0:02:38]} Qg6 {[%emt 0:00:11]} 33. Rc3 {[%emt 0:02:39]} e4 {[%emt 0:00:45]} 34. Rxh6 {[%emt 0:00:38]} Qxh6 {[%emt 0:00:23]} 35. Qxe4 {[%emt 0:00:17]} Qg7 {[%emt 0:01:23]} 36. Rc6 {[%emt 0:01:31]} a5 {[%emt 0:00:31]} 37. Ra6 {[%emt 0:01:09]} Qf7 {[%emt 0:00:45]} 38. Nf4 {[%emt 0:01:05]} Qb7 {[%emt 0:00:39]} 39. Rxa5 {[%emt 0:01:12]} Qb6 {[%emt 0:00:26]} 40. Ra3 {[%emt 0:00:44]} Rg8 {[%emt 0:00:34]} 41. b4 {[%emt 0:08:40]} Rgf8 {[%emt 0:12:44]} 42. Rc3 {[%emt 0:03:24]} Qa7 {[%emt 0:01:19]} 43. b5 {[%emt 0:03:28]} Rf5 {[%emt 0:06:17]} 44. Rc2 {[%emt 0:02:04]} Re5 {[%emt 0:02:21]} 45. Qc4 {[%emt 0:00:58]} Qa5 {[%emt 0:02:25]} 46. Ne6 {[%emt 0:05:27]} Rg8 {[%emt 0:02:21]} 47. a4 {[%emt 0:02:48]} Qa8 {[%emt 0:02:07]} 48. Nf4 {[%emt 0:02:01]} Qd8 {[%emt 0:02:44]} 49. Qd4 {[%emt 0:00:44]} Qf6 {[%emt 0:01:44]} 50. b6 {[%emt 0:01:01]} h5 {[%emt 0:00:57]} 51. b7 {[%emt 0:00:48]} h4 {[%emt 0:00:37]} 52. Rc8 {[%emt 0:00:13]} h3+ {[%emt 0:00:24]} 53. Nxh3 {[%emt 0:00:21]} 1-0

[Event "DSB-Frauenkader-Challenge 2021"]
[Site "Magdeburg"]
[Date "2021.04.05"]
[Round "1.3"]
[White "Muetsch, Annmarie"]
[Black "Paehtz, Elisabeth"]
[Result "0-1"]
[ECO "C54"]
[WhiteElo "2266"]
[BlackElo "2467"]
[Annotator "ChessBase"]
[PlyCount "76"]
[EventDate "2021.03.30"]
[EventType "tourn"]
[EventCountry "GER"]
[SourceTitle "playchess.com"]
[Source "ChessBase"]
[SourceQuality "1"]
[TimeControl "40/5400+30:1800+30"]

1. e4 {[%emt 0:00:00]} e5 {[%emt 0:00:00]} 2. Nf3 {[%emt 0:00:00]} Nc6 {[%emt 0:00:00]} 3. Bc4 {[%emt 0:00:14]} Bc5 {[%emt 0:00:00]} 4. c3 {[%emt 0:00:13]} Nf6 {[%emt 0:00:03]} 5. d3 {[%emt 0:00:08]} a6 {[%emt 0:00:09]} 6. Nbd2 {[%emt 0:00:36]} Ba7 {[%emt 0:01:07]} 7. O-O {[%emt 0:00:52]} d6 {[%emt 0:00:06]} 8. Bb3 {[%emt 0:00:15]} h6 {[%emt 0:02:09]} 9. h3 {[%emt 0:02:54]} g5 {[%emt 0:00:23]} 10. Nc4 {[%emt 0:02:53]} g4 {[%emt 0:02:03]} 11. hxg4 {[%emt 0:01:31]} Bxg4 {[%emt 0:01:12]} 12. Be3 {[%emt 0:14:06]} Rg8 {[%emt 0:07:25]} 13. Bxa7 {[%emt 0:09:02]} Nxa7 {[%emt 0:01:19]} 14. Ne3 {[%emt 0:01:25]} Qd7 {[%emt 0:09:28]} 15. d4 {[%emt 0:10:18]} Nxe4 {[%emt 0:27:50]} 16. Re1 {[%emt 0:20:39]} O-O-O {[%emt 0:08:15]} 17. dxe5 {[%emt 0:06:43]} Nd2 {[%emt 0:10:46]} 18. Qxd2 {[%emt 0:06:32]} Bxf3 {[%emt 0:00:04]} 19. e6 {[%emt 0:01:10]} fxe6 {[%emt 0:02:31]} 20. Qd4 {[%emt 0:00:20]} Kb8 {[%emt 0:05:09]} 21. Qf6 {[%emt 0:00:05]} Qc6 {[%emt 0:07:56]} 22. Bxe6 {[%emt 0:04:55]} Rdf8 {[%emt 0:00:33]} 23. Qh4 {[%emt 0:09:09]} Rg6 {[%emt 0:01:26]} 24. Bh3 {[%emt 0:02:40]} Rfg8 {[%emt 0:03:09]} 25. g3 {[%emt 0:00:44]} Qc5 {[%emt 0:00:50]} 26. Qf4 {[%emt 0:01:12]} Bc6 {[%emt 0:01:26]} 27. Rad1 {[%emt 0:00:52]} h5 {[%emt 0:02:00]} 28. Bg2 {[%emt 0:00:41]} Rg5 {[%emt 0:01:18]} 29. Qd4 {[%emt 0:02:19]} Qa5 {[%emt 0:01:11]} 30. a3 {[%emt 0:01:16]} Bxg2 {[%emt 0:00:46]} 31. Kxg2 {[%emt 0:00:13]} Nc6 {[%emt 0:00:03]} 32. Qe4 {[%emt 0:00:47]} Qb5 {[%emt 0:01:14]} 33. b4 {[%emt 0:00:45]} Ne5 {[%emt 0:01:45]} 34. c4 {[%emt 0:00:44]} Qa4 {[%emt 0:01:05]} 35. Ra1 {[%emt 0:00:39]} h4 {[%emt 0:00:33]} 36. Nf5 {[%emt 0:00:32]} hxg3 {[%emt 0:00:53]} 37. Nxg3 {[%emt 0:00:21]} Rg4 {[%emt 0:00:12]} 38. Qh7 {[%emt 0:00:42]} Qc6+ {[%emt 0:00:32]} 0-1

[Event "DSB-Frauenkader-Challenge 2021"]
[Site "Magdeburg"]
[Date "2021.04.05"]
[Round "1.4"]
[White "Heinemann, Josefine"]
[Black "Ziegenfuss, Antonia"]
[Result "0-1"]
[ECO "B85"]
[WhiteElo "2296"]
[BlackElo "2101"]
[Annotator "ChessBase"]
[PlyCount "80"]
[EventDate "2021.03.30"]
[EventType "tourn"]
[EventCountry "GER"]
[SourceTitle "playchess.com"]
[Source "ChessBase"]
[SourceQuality "1"]
[TimeControl "40/5400+30:1800+30"]

1. e4 {[%emt 0:00:00]} c5 {[%emt 0:00:00]} 2. Nf3 {[%emt 0:00:00]} e6 {[%emt 0:00:00]} 3. d4 {[%emt 0:00:00]} cxd4 {[%emt 0:00:00]} 4. Nxd4 {[%emt 0:00:00]} Nc6 {[%emt 0:00:00]} 5. Nc3 {[%emt 0:00:17]} Qc7 {[%emt 0:00:00]} 6. Be3 {[%emt 0:01:00]} a6 {[%emt 0:00:04]} 7. Be2 {[%emt 0:01:07]} Nf6 {[%emt 0:01:00]} 8. O-O {[%emt 0:00:46]} Be7 {[%emt 0:03:26]} 9. f4 {[%emt 0:01:33]} d6 {[%emt 0:01:23]} 10. Qe1 {[%emt 0:02:28]} Nxd4 {[%emt 0:05:10]} 11. Bxd4 {[%emt 0:00:23]} O-O {[%emt 0:00:10]} 12. Qg3 {[%emt 0:03:46]} b5 {[%emt 0:04:18]} 13. Kh1 {[%emt 0:08:04]} Bb7 {[%emt 0:01:40]} 14. a3 {[%emt 0:03:00]} Rad8 {[%emt 0:04:42]} 15. Rae1 {[%emt 0:04:30]} Bc6 {[%emt 0:07:50]} 16. Bd3 {[%emt 0:03:56]} g6 {[%emt 0:04:38]} 17. e5 {[%emt 0:07:58]} dxe5 {[%emt 0:08:00]} 18. Bxe5 {[%emt 0:00:07]} Qb7 {[%emt 0:00:18]} 19. Re2 {[%emt 0:04:26]} Nh5 {[%emt 0:10:20]} 20. Qe3 {[%emt 0:03:04]} f6 {[%emt 0:07:35]} 21. Bd4 {[%emt 0:00:38]} e5 {[%emt 0:01:45]} 22. Bb6 {[%emt 0:06:32]} Rb8 {[%emt 0:15:16]} 23. Ba5 {[%emt 0:02:19]} Bd6 {[%emt 0:08:37]} 24. f5 {[%emt 0:04:58]} Kg7 {[%emt 0:03:05]} 25. Ne4 {[%emt 0:06:48]} Nf4 {[%emt 0:01:01]} 26. Rd2 {[%emt 0:04:38]} Be7 {[%emt 0:01:03]} 27. Rff2 {[%emt 0:04:57]} Rbc8 {[%emt 0:00:56]} 28. h3 {[%emt 0:04:02]} gxf5 {[%emt 0:00:39]} 29. Ng3 {[%emt 0:02:47]} Bc5 {[%emt 0:00:27]} 30. Nxf5+ {[%emt 0:03:41]} Kh8 {[%emt 0:00:16]} 31. Qg3 {[%emt 0:01:15]} Bxf2 {[%emt 0:00:20]} 32. Rxf2 {[%emt 0:00:03]} Bxg2+ {[%emt 0:05:55]} 33. Kh2 {[%emt 0:01:26]} Rg8 {[%emt 0:01:20]} 34. Qh4 {[%emt 0:00:13]} Rg5 {[%emt 0:01:44]} 35. Nd6 {[%emt 0:02:12]} Qg7 {[%emt 0:00:41]} 36. Nxc8 {[%emt 0:05:12]} Nxd3 {[%emt 0:00:18]} 37. Bd2 {[%emt 0:01:48]} Rg6 {[%emt 0:02:14]} 38. Ne7 {[%emt 0:01:59]} Qxe7 {[%emt 0:00:30]} 39. cxd3 {[%emt 0:00:11]} Ba8 {[%emt 0:01:28]} 40. Qb4 {[%emt 0:06:48]} Qg7 {[%emt 0:00:21]} 0-1

[Event "DSB-Frauenkader-Challenge 2021"]
[Site "Magdeburg"]
[Date "2021.04.06"]
[Round "2.1"]
[White "Sieber, Fiona"]
[Black "Ziegenfuss, Antonia"]
[Result "1/2-1/2"]
[ECO "B47"]
[WhiteElo "2275"]
[BlackElo "2101"]
[Annotator "NA"]
[PlyCount "113"]
[EventDate "2021.03.30"]
[EventType "tourn"]
[EventCountry "GER"]
[SourceTitle "playchess.com"]
[Source "ChessBase"]
[SourceQuality "1"]
[TimeControl "40/5400+30:1800+30"]

1. e4 {[%emt 0:00:00]} c5 {[%emt 0:00:00]} 2. Nf3 {[%emt 0:00:00]} e6 {[%emt 0:00:00]} 3. d4 {[%emt 0:00:00]} cxd4 {[%emt 0:00:00]} 4. Nxd4 {[%emt 0:00:00]} Nc6 {[%emt 0:00:00]} 5. Nc3 {[%emt 0:00:00]} Qc7 {[%emt 0:00:00]} 6. g3 {[%emt 0:00:00]} a6 {[%emt 0:00:13]} 7. Bg2 {[%emt 0:00:00]} Nf6 {[%emt 0:01:03]} 8. O-O {[%emt 0:00:01]} Nxd4 {[%emt 0:00:06]} 9. Qxd4 {[%emt 0:00:16]} Bc5 {[%emt 0:00:09]} 10. Bf4 {[%emt 0:00:30]} d6 {[%emt 0:00:12]} 11. Qd2 {[%emt 0:00:06]} h6 {[%emt 0:00:33]} 12. Rad1 {[%emt 0:00:04]} e5 {[%emt 0:00:14]} 13. Be3 {[%emt 0:00:05]} Bb4 {[%emt 0:00:33]} 14. Nb5 {[%emt 0:00:52]} axb5 {[%emt 0:00:05]} 15. Qxb4 {[%emt 0:00:04]} Rxa2 {[%emt 0:00:14]} 16. Rxd6 {[%emt 0:05:46]} O-O {[%emt 0:01:30]} 17. Rd2 {[%emt 0:04:06]} Be6 {[%emt 0:01:12]} 18. Bc5 {[%emt 0:25:37]} Ra4 {[%emt 0:12:18]} 19. Qxb5 {[%emt 0:00:46]} Ra5 {[%emt 0:00:21]} 20. Bb6 {[%emt 0:00:24]} Rxb5 {[%emt 0:00:07]} 21. Bxc7 {[%emt 0:00:05]} Rc8 {[%emt 0:01:27]} 22. Bd6 {[%emt 0:03:57]} Rxb2 {[%emt 0:05:28]} 23. Bxe5 {[%emt 0:00:04]} Rbxc2 {[%emt 0:00:11]} 24. Rxc2 {[%emt 0:00:10]} Rxc2 {[%emt 0:00:05]} 25. Rb1 {[%emt 0:05:52]} b5 {[%emt 0:12:43]} 26. Bxf6 {[%emt 0:01:16]} gxf6 {[%emt 0:00:10]} 27. Bf1 {[%emt 0:00:15]} Bc4 {[%emt 0:05:30]} 28. Kg2 {[%emt 0:02:18]} Bxf1+ {[%emt 0:04:02]} 29. Kxf1 {[%emt 0:01:59]} Rc4 {[%emt 0:01:30]} 30. f3 {[%emt 0:02:06]} b4 {[%emt 0:01:04]} 31. Rb3 {[%emt 0:04:28]} Rc1+ {[%emt 0:08:07]} 32. Kf2 {[%emt 0:00:11]} Rc2+ {[%emt 0:00:11]} 33. Ke3 {[%emt 0:00:06]} Rxh2 {[%emt 0:00:15]} 34. Rxb4 {[%emt 0:00:04]} h5 {[%emt 0:05:44]} 35. Rb5 {[%emt 0:01:52]} Kg7 {[%emt 0:04:45]} 36. Kf4 {[%emt 0:00:52]} Kg6 {[%emt 0:04:34]} 37. Rb6 {[%emt 0:00:56]} Re2 {[%emt 0:01:32]} 38. Rb8 $11 {[%emt 0:00:52]} Re1 {[%emt 0:02:36]} 39. Rh8 {[%emt 0:01:22]} Re2 {[%emt 0:07:20]} 40. Rg8+ {[%emt 0:00:12]} Kh7 {[%emt 0:00:18]} 41. Rd8 {[%emt 0:30:19]} Kg6 {[%emt 0:30:49]} 42. Rd1 {[%emt 0:00:04]} Ra2 {[%emt 0:02:01]} 43. Rg1 {[%emt 0:05:42]} Ra5 {[%emt 0:11:43]} 44. Rd1 {[%emt 0:01:12]} Ra2 {[%emt 0:01:04]} 45. Ke3 {[%emt 0:01:06]} Rg2 {[%emt 0:02:46]} 46. Rd8 {[%emt 0:01:12]} Kg7 {[%emt 0:04:32]} 47. Kf4 {[%emt 0:00:07]} Kg6 {[%emt 0:01:24]} 48. g4 {[%emt 0:03:11]} hxg4 {[%emt 0:01:48]} 49. Rg8+ {[%emt 0:00:09]} Kh7 {[%emt 0:00:13]} 50. Rxg4 {[%emt 0:00:04]} Ra2 {[%emt 0:01:30]} 51. Kf5 {[%emt 0:00:49]} Ra6 {[%emt 0:00:35]} 52. Rg1 {[%emt 0:02:25]} Rb6 {[%emt 0:00:00]} 53. Rg2 {[%emt 0:00:00]} Ra6 {[%emt 0:00:00]} 54. Rg3 {[%emt 0:00:00]} Rb6 {[%emt 0:00:00]} 55. Kf4 {[%emt 0:00:00]} Rb5 {[%emt 0:00:00]} 56. Rg1 {[%emt 0:00:00]} Kh6 {[%emt 0:00:00]} 57. Rg8 {[%emt 0:00:00]} 1/2-1/2

[Event "DSB-Frauenkader-Challenge 2021"]
[Site "Magdeburg"]
[Date "2021.04.06"]
[Round "2.2"]
[White "Paehtz, Elisabeth"]
[Black "Heinemann, Josefine"]
[Result "1/2-1/2"]
[ECO "A33"]
[WhiteElo "2467"]
[BlackElo "2296"]
[Annotator "ChessBase"]
[PlyCount "105"]
[EventDate "2021.03.30"]
[EventType "tourn"]
[EventCountry "GER"]
[SourceTitle "playchess.com"]
[Source "ChessBase"]
[SourceQuality "1"]
[TimeControl "40/5400+30:1800+30"]

1. Nf3 {[%emt 0:00:00]} c5 {[%emt 0:00:05]} 2. c4 {[%emt 0:02:56]} Nc6 {[%emt 0:01:01]} 3. d4 {[%emt 0:02:39]} cxd4 {[%emt 0:00:09]} 4. Nxd4 {[%emt 0:00:04]} Nf6 {[%emt 0:01:27]} 5. Nc3 {[%emt 0:03:54]} e6 {[%emt 0:01:19]} 6. a3 {[%emt 0:08:01]} Bc5 {[%emt 0:02:54]} 7. Nc2 {[%emt 0:08:26]} O-O {[%emt 0:03:40]} 8. b4 {[%emt 0:04:53]} Bb6 {[%emt 0:03:25]} 9. Bf4 {[%emt 0:06:13]} e5 {[%emt 0:08:00]} 10. Bg3 {[%emt 0:01:14]} d6 {[%emt 0:00:34]} 11. e3 {[%emt 0:02:03]} Be6 {[%emt 0:04:10]} 12. Be2 {[%emt 0:04:36]} Rc8 {[%emt 0:07:17]} 13. Bh4 {[%emt 0:08:53]} Nb8 {[%emt 0:08:45]} 14. Nd5 {[%emt 0:14:51]} Bxd5 {[%emt 0:00:20]} 15. Bxf6 {[%emt 0:00:04]} Qxf6 {[%emt 0:00:49]} 16. Qxd5 {[%emt 0:00:04]} Nc6 {[%emt 0:02:12]} 17. Rd1 {[%emt 0:02:24]} Rfd8 {[%emt 0:01:59]} 18. O-O {[%emt 0:02:50]} Qe6 {[%emt 0:04:16]} 19. Qb5 {[%emt 0:00:59]} Rd7 {[%emt 0:09:28]} 20. c5 {[%emt 0:08:53]} dxc5 {[%emt 0:03:11]} 21. bxc5 {[%emt 0:00:06]} Bd8 {[%emt 0:01:28]} 22. Rxd7 {[%emt 0:03:29]} Qxd7 {[%emt 0:00:06]} 23. Rd1 {[%emt 0:00:58]} Qe7 {[%emt 0:05:02]} 24. Bg4 {[%emt 0:02:33]} Rc7 {[%emt 0:04:49]} 25. Nb4 {[%emt 0:03:46]} Nxb4 {[%emt 0:02:03]} 26. axb4 {[%emt 0:00:05]} Qf8 {[%emt 0:03:07]} 27. Bf3 {[%emt 0:02:27]} a6 {[%emt 0:03:11]} 28. Qd3 {[%emt 0:00:05]} Bf6 {[%emt 0:03:40]} 29. Qf5 {[%emt 0:00:47]} Qe7 {[%emt 0:01:59]} 30. g3 {[%emt 0:03:23]} g6 {[%emt 0:00:17]} 31. Qd3 {[%emt 0:00:06]} Kg7 {[%emt 0:01:17]} 32. Kg2 {[%emt 0:01:03]} h5 {[%emt 0:05:14]} 33. h4 {[%emt 0:00:08]} Qe6 {[%emt 0:01:02]} 34. Qe4 {[%emt 0:01:21]} a5 {[%emt 0:02:14]} 35. bxa5 {[%emt 0:02:00]} Be7 {[%emt 0:02:58]} 36. Rd5 {[%emt 0:00:26]} f6 {[%emt 0:00:50]} 37. Qb4 {[%emt 0:00:22]} Qc8 {[%emt 0:01:21]} 38. Qd2 {[%emt 0:01:02]} Bxc5 {[%emt 0:00:45]} 39. Rd8 {[%emt 0:00:08]} Qe6 {[%emt 0:00:31]} 40. Bd5 {[%emt 0:00:36]} Qe7 {[%emt 0:00:56]} 41. Bb3 {[%emt 0:03:16]} f5 {[%emt 0:10:12]} 42. Qd5 {[%emt 0:01:17]} Qf6 {[%emt 0:00:55]} 43. f3 {[%emt 0:15:13]} e4 {[%emt 0:05:00]} 44. f4 {[%emt 0:06:15]} Qb2+ {[%emt 0:02:50]} 45. Kh3 {[%emt 0:00:18]} Qa1 {[%emt 0:02:57]} 46. Bd1 {[%emt 0:00:12]} Qf6 {[%emt 0:00:26]} 47. Bb3 {[%emt 0:04:02]} Qa1 {[%emt 0:00:05]} 48. Bd1 {[%emt 0:00:44]} Qf6 {[%emt 0:00:04]} 49. Re8 {[%emt 0:01:18]} Be7 {[%emt 0:05:47]} 50. Bb3 {[%emt 0:01:01]} Qa1 {[%emt 0:01:28]} 51. Bd1 {[%emt 0:00:39]} Qf6 {[%emt 0:00:02]} 52. Rb8 {[%emt 0:01:04]} Qf7 {[%emt 0:01:28]} 53. Bb3 {[%emt 0:01:27]} 1/2-1/2

[Event "DSB-Frauenkader-Challenge 2021"]
[Site "Magdeburg"]
[Date "2021.04.06"]
[Round "2.3"]
[White "Lubbe, Melanie"]
[Black "Muetsch, Annmarie"]
[Result "1/2-1/2"]
[ECO "A36"]
[WhiteElo "2274"]
[BlackElo "2266"]
[Annotator "NA"]
[PlyCount "95"]
[EventDate "2021.03.30"]
[EventType "tourn"]
[EventCountry "GER"]
[SourceTitle "playchess.com"]
[Source "ChessBase"]
[SourceQuality "1"]
[TimeControl "40/5400+30:1800+30"]

1. c4 {[%emt 0:00:00]} Nf6 {[%emt 0:00:00]} 2. g3 {[%emt 0:00:00]} d6 {[%emt 0:00:23]} 3. Bg2 {[%emt 0:00:02]} g6 {[%emt 0:00:12]} 4. Nc3 {[%emt 0:00:25]} Bg7 {[%emt 0:00:07]} 5. e4 {[%emt 0:00:19]} c5 {[%emt 0:00:27]} 6. Nge2 {[%emt 0:00:45]} Nc6 {[%emt 0:00:21]} 7. d3 {[%emt 0:01:09]} O-O {[%emt 0:00:16]} 8. O-O {[%emt 0:01:13]} Bg4 {[%emt 0:00:11]} 9. f3 {[%emt 0:01:53]} Bd7 {[%emt 0:00:09]} 10. h3 {[%emt 0:04:29]} Rb8 {[%emt 0:01:42]} 11. f4 {[%emt 0:11:37]} a6 {[%emt 0:01:14]} 12. a4 {[%emt 0:09:05]} Ne8 {[%emt 0:01:43]} 13. g4 {[%emt 0:10:26]} Nd4 {[%emt 0:05:32]} 14. Nxd4 {[%emt 0:04:41]} Bxd4+ {[%emt 0:06:26]} 15. Kh1 {[%emt 0:00:05]} e6 {[%emt 0:00:20]} 16. Qe2 {[%emt 0:03:46]} b5 {[%emt 0:09:17]} 17. axb5 {[%emt 0:04:13]} axb5 {[%emt 0:00:07]} 18. cxb5 {[%emt 0:14:26]} Bxb5 {[%emt 0:06:02]} 19. f5 {[%emt 0:00:14]} Bc6 {[%emt 0:10:55]} 20. Bh6 {[%emt 0:02:46]} Bg7 {[%emt 0:02:46]} 21. Bxg7 {[%emt 0:01:02]} Kxg7 {[%emt 0:07:34]} 22. Rf2 {[%emt 0:02:28]} e5 {[%emt 0:08:11]} 23. Raf1 {[%emt 0:02:23]} f6 {[%emt 0:00:16]} 24. fxg6 {[%emt 0:04:23]} hxg6 $11 {[%emt 0:00:07]} 25. g5 {[%emt 0:00:42]} Rb7 {[%emt 0:02:05]} 26. Qg4 {[%emt 0:02:11]} Rbf7 {[%emt 0:04:46]} 27. h4 {[%emt 0:03:03]} fxg5 {[%emt 0:10:43]} 28. Rxf7+ {[%emt 0:00:06]} Rxf7 {[%emt 0:00:04]} 29. hxg5 {[%emt 0:01:07]} Rxf1+ {[%emt 0:11:12]} 30. Bxf1 {[%emt 0:00:01]} Nc7 {[%emt 0:00:46]} 31. Bh3 {[%emt 0:04:36]} Nb5 {[%emt 0:03:17]} 32. Ne2 {[%emt 0:04:12]} Nc7 {[%emt 0:02:43]} 33. Kh2 {[%emt 0:02:54]} d5 {[%emt 0:01:19]} 34. Qh4 {[%emt 0:02:17]} Qh8 {[%emt 0:01:21]} 35. Qg3 {[%emt 0:01:05]} Qe8 {[%emt 0:00:29]} 36. exd5 {[%emt 0:02:48]} Bxd5 {[%emt 0:00:25]} 37. Nc3 {[%emt 0:00:32]} Bc6 {[%emt 0:00:31]} 38. Bg2 {[%emt 0:00:24]} Bxg2 {[%emt 0:01:50]} 39. Kxg2 {[%emt 0:00:01]} Qe6 {[%emt 0:02:22]} 40. Qf3 {[%emt 0:01:33]} Qe7 {[%emt 0:01:09]} 41. Qe3 {[%emt 0:06:49]} Kf7 {[%emt 0:01:45]} 42. Kf2 {[%emt 0:04:11]} Ne6 {[%emt 0:03:21]} 43. Qxe5 {[%emt 0:04:47]} Qxg5 {[%emt 0:00:35]} 44. Qxg5 {[%emt 0:00:44]} Nxg5 {[%emt 0:00:05]} 45. Ke3 {[%emt 0:01:47]} Ke6 {[%emt 0:01:18]} 46. d4 {[%emt 0:07:11]} cxd4+ {[%emt 0:01:52]} 47. Kxd4 {[%emt 0:00:05]} Kd6 {[%emt 0:00:30]} 48. Ne4+ {[%emt 0:02:52]} 1/2-1/2